Cogmind - Beta 15 @@@ ROGUE MODE // 2025.06.03 @ 18:35:52 Player: Monday Result: Destroyed by D-53 Grenadier with Mini Grenade Launcher Performance ------------- Evolutions (0) 0 Regions Visited (2) 400 Robots Destroyed (19) 95 Value Destroyed (383) 383 Prototype IDs (0) 0 Alien Tech Used (0) 0 Bonus (0) 0 TOTAL SCORE: 878 Bonus ------- None Cogmind --------- Core Integrity 0/250 Matter 230/300 Energy 160/160 System Corruption 0% Temperature Cool (9) Movement Core (200) Ox3 Location -10/Mines Parts ------- > --- POWER (1) -------- Light Nuclear Core > --- PROPULSION (2) --- (None) > --- UTILITY (2) ------ Small Storage Unit Visual Processing Unit > --- WEAPON (2) ------- Mini Grenade Launcher > --- INVENTORY (8) ---- Light Nuclear Core Light Treads Light Treads Improved Heat Sink Autogun Peak State ------------ > --- POWER ------------ Light Nuclear Core > --- PROPULSION ------- Aluminum Leg Aluminum Leg > --- UTILITY ---------- Small Storage Unit Visual Processing Unit > --- WEAPON ----------- Autogun Autogun > --- INVENTORY -------- Light Nuclear Core Light Treads Light Treads Aluminum Leg Mini Grenade Launcher Mini Grenade Launcher [Rating: 13] Favorites ----------- Power Ion Engine Engine Ion Engine Power Core Light Nuclear Core Propulsion Aluminum Leg Leg Aluminum Leg Utility Small Storage Unit Storage Small Storage Unit Processor Visual Processing Unit Weapon Autogun Energy Gun Medium Laser Ballistic Gun Autogun Launcher Mini Grenade Launcher Build | -11 -10 -10 ------- Run | Yrd Mat Min Slots Evolved . | . . . Power . | . . . Propulsion . | . . . Utility . | . . . Weapon . | . . . Parts Attached 14 | 6 3 5 Power 2 | 1 . 1 Engine 1 | 1 . . Core 1 | . . 1 Reactor . | . . . Propulsion 4 | 2 . 2 Treads . | . . . Leg 4 | 2 . 2 Wheel . | . . . Hover . | . . . Flight . | . . . Utility 2 | 1 1 . Device . | . . . Storage 1 | 1 . . Processor 1 | . 1 . Hackware . | . . . Protection . | . . . Artifact . | . . . Weapon 6 | 2 2 2 Energy Gun 2 | 2 . . Energy Cannon . | . . . Ballistic Gun 2 | . 2 . Ballistic Cannon . | . . . Launcher 2 | . . 2 Special Weapon . | . . . Impact Weapon . | . . . Slashing Weapon . | . . . Piercing Weapon . | . . . Special Melee Weapon . | . . . Unidentified Prototypes . | . . . Parts Lost 4 | . . 4 Power . | . . . Propulsion 2 | . . 2 Utility . | . . . Weapon 2 | . . 2 Highest Loss Streak 4 | . . 4 To Critical Strikes . | . . . Average Backups 5 | 1 5 6 Power 1 | . 1 1 Propulsion 2 | 1 2 2 Utility . | . . . Weapon 1 | . 1 1 Tool/Special . | . . . Unused Backups 7 | . 2 5 Power 2 | . . 2 Propulsion 2 | . . 2 Utility 1 | . . 1 Weapon 2 | . 2 . Tool/Special . | . . . Average Slot Usage (%) 93 | . 85 99 Engine 10 | . 14 7 Core 3 | . . 6 Leg 27 | . 28 27 Storage 14 | . 14 14 Processor 8 | . 1 14 Energy Gun 5 | . 12 . Ballistic Gun 21 | . 14 27 Peak Build Rating 13 | 6 11 13 Average Rating 9 | 4 7 11 On Entrance 5 | . 6 11 Naked Turns . | . . . Heaviest Build 16 | 13 16 16 Greatest Support 20 | 20 20 20 Greatest Overweight (x) 1 | . . 1 Average Overweight (x) . | . . . Largest Inventory Capacity 8 | 8 8 8 Average Capacity 7 | 7 8 8 Most Carried 8 | 4 8 8 Average Carried 5 | 1 5 6 Final Capacity 8 | 8 8 8 Final Carried 7 | 4 7 5 Class Distribution -------------------- 84% | Mutant 15% | Scavenger-Mutant Dominant Class ---------------- Mutant | -10/Materials Mutant | -10/Mines Resources | -11 -10 -10 ----------- Run | Yrd Mat Min Matter Collected 593 | 234 147 212 Remotely . | . . . Salvage Created 488 | . 241 247 Parts 38 | . 20 18 Haulers Intercepted . | . . . Recyclers Shooed . | . . . Parts Field Recycled . | . . . Retrieved Matter . | . . . Parts Self-Destructed . | . . . Prevented . | . . . Kills | -11 -10 -10 ------- Run | Yrd Mat Min Combat Hostiles Destroyed 17 | . 7 10 Guns 17 | . 7 10 Classes Destroyed 4 | . 3 1 Tunneler 1 | . . 1 Watcher 1 | . 1 . Swarmer 11 | . 3 8 Grunt 6 | . 4 2 Best Kill Streak 5 | . 3 5 Combat Bots Only 5 | . 3 5 Max Kills in Single Turn 2 | . 2 1 Gunslinging 1 | . 1 . Exploded . | . . . Melee . | . . . Uniques/NPCs Destroyed . | . . . Combat | -11 -10 -10 -------- Run | Yrd Mat Min Hostile Shots Fired 71 | . 30 41 Missed 17 | . 6 11 Hits 54 | . 24 30 Projectile 54 | . 24 30 AOE 12 | . . 12 Damage Taken 910 | . 235 675 Core 255 | . 26 229 Absorbed by Shields . | . . . Core Remaining (%) 100 | 100 . . Volleys Fired 40 | . 18 22 Largest 2 | . 2 2 Hottest 60 | . 46 60 Shots Fired 79 | . 36 43 Gun 74 | . 36 38 Cannon . | . . . Launcher 5 | . . 5 Special . | . . . Kinetic 74 | . 36 38 Thermal . | . . . Explosive 5 | . . 5 Electromagnetic . | . . . Robot Hit Streak 7 | . 6 7 Robot Miss Streak 4 | . 4 4 Penetration Max . | . . . Secondary Targets 2 | . 1 1 Max Gunslinging Chain 1 | . 1 1 Shots Hit Robots 43 | . 21 22 Core Hits 31 | . 11 20 Critical Kills . | . . . Critical Parts Destroyed . | . . . Critical Strikes . | . . . Melee Attacks . | . . . Impact . | . . . Slashing . | . . . Piercing . | . . . Sneak Attacks . | . . . Combat Hostiles . | . . . Follow-up Attacks . | . . . Damage Inflicted 756 | . 342 414 Guns 652 | . 342 310 Cannons . | . . . Explosions 104 | . . 104 Melee . | . . . Ramming . | . . . Kinetic 652 | . 342 310 Thermal . | . . . Explosive 104 | . . 104 Electromagnetic . | . . . Impact . | . . . Slashing . | . . . Piercing . | . . . Highest Corruption . | . . . Average Corruption . | . . . Corruption Purged . | . . . Corruption Blocked . | . . . Overload Shots . | . . . Overflow Damage . | . . . Projectiles . | . . . Explosions . | . . . Melee . | . . . Knockbacks . | . . . Impact . | . . . Kinetic . | . . . Secondary . | . . . Self-Inflicted Damage 2 | . . 2 Shots 1 | . . 1 Rammed . | . . . Targets Rammed 1 | . . 1 Kicked 1 | . . 1 Crushed . | . . . Highest Temperature 39 | . 39 27 Average Temperature 11 | . 14 7 Received Heat Transfer 84 | . 69 15 Siege Activations . | . . . Martial Activations . | . . . Shielding Activations . | . . . Robots Disrupted . | . . . Combat Hostiles . | . . . Robots Corrupted . | . . . Combat Hostiles . | . . . Parts Fried . | . . . Impact Corruptions . | . . . Robots Melted . | . . . Combat Hostiles . | . . . Parts Melted . | . . . Heat Transferred . | . . . Parts Sabotaged . | . . . Parts Stolen . | . . . Parts Stripped . | . . . Power Chain Reactions . | . . . Alert | -11 -10 -10 ------- Run | Yrd Mat Min Maximum Alert Level . | . . . Low Security (%) 100 | 100 100 100 Level 1 . | . . . Level 2 . | . . . Level 3 . | . . . Level 4 . | . . . Level 5 . | . . . High Security . | . . . Max Security . | . . . Peak Influence 184 | . 128 184 Initial 39 | . . 39 Average 78 | . 30 131 Influence Increases 476 | . 180 296 Destroy 0b10 Robot/C 340 | . 140 200 Destroy 0b10 Robot/NC 10 | . 5 5 Destroy Leader 72 | . 32 40 Successful Hack 2 | . 2 . Disable Machine 30 | . . 30 Destroy Structure 22 | . 1 21 Influence Decreases 403 | . 80 323 Entered New Map 61 | . . 61 Time Decay 302 | . 80 222 Lost Part 40 | . . 40 Squads Dispatched 3 | . 3 . Investigation 1 | . 1 . Extermination . | . . . Reinforcement 2 | . 2 . Assault . | . . . Garrison . | . . . Intercept . | . . . Searches Triggered . | . . . Construction Impeded . | . . . Haulers Reinforced . | . . . Active Scanning Responses . | . . . Cargo Convoy Interrupts . | . . . Stealth | -11 -10 -10 --------- Run | Yrd Mat Min Distress Signals 3 | . 1 2 Communications Jammed . | . . . Distress Signals . | . . . Times Spotted 27 | . 14 13 Peak Tracking Total 7 | . 7 4 Tactical Retreats . | . . . Traps | -11 -10 -10 ------- Run | Yrd Mat Min Traps Triggered 1 | . 1 . Indirectly . | . . . Trap Hack Attempts . | . . . Triggered . | . . . Disarmed . | . . . Reprogrammed . | . . . Reused . | . . . Traps Extracted . | . . . Installed . | . . . Triggered . | . . . Most Traps Carried 1 | . . 1 Machines | -11 -10 -10 ---------- Run | Yrd Mat Min Machines Disabled 2 | . . 2 Max in Single Turn 1 | . . 1 Machines Repaired . | . . . Machines Dismantled . | . . . Machines Sabotaged . | . . . Overloaded Fab Kills . | . . . Hacking | -11 -10 -10 --------- Run | Yrd Mat Min Machines Accessed 1 | . 1 . Terminals 1 | . 1 . Fabricators . | . . . Repair Stations . | . . . Recycling Units . | . . . Scanalyzers . | . . . Garrison Access . | . . . Total Hacks 4 | . 4 . Successful 1 | . 1 . Failed 3 | . 3 . Catastrophic 1 | . 1 . Database Lockouts . | . . . Manual 2 | . 2 . Terminals 4 | . 4 . Fabricators . | . . . Repair Stations . | . . . Recycling Units . | . . . Scanalyzers . | . . . Garrison Access . | . . . Terminal Hacks 1 | . 1 . Record 1 | . 1 . Fabricator Hacks . | . . . Repair Station Hacks . | . . . Recycling Unit Hacks . | . . . Scanalyzer . | . . . Garrison Access Hacks . | . . . Unauthorized Hacks . | . . . Terminals . | . . . Fabricators . | . . . Repair Stations . | . . . Recycling Units . | . . . Scanalyzers . | . . . Garrison Access . | . . . Data Cores Recovered . | . . . Used . | . . . Hacking Detections . | . . . Full Trace Events . | . . . Feedback Events . | . . . Feedback Blocked . | . . . Robot Schematics Acquired . | . . . Robots Built . | . . . Authchips . | . . . Time . | . . . Total Robot Build Rating . | . . . Part Schematics Acquired . | . . . Parts Built . | . . . Authchips . | . . . Time . | . . . Total Part Build Rating . | . . . Parts Repaired . | . . . Time . | . . . Parts Recycled . | . . . Recycled Matter . | . . . Retrieved Matter . | . . . Retrieved Components . | . . . Parts Scanalyzed . | . . . Part Schematics Acquired . | . . . Parts Damaged . | . . . Bothacking | -11 -10 -10 ------------ Run | Yrd Mat Min Used RIF Installer . | . . . Robots Hacked . | . . . Non-combat . | . . . Combat . | . . . Robot Hacks Applied . | . . . Relay Couplers Released . | . . . Fabnet Peak Effective % . | . . . Robots Rewired . | . . . Allies Hacked . | . . . Hacks Repelled . | . . . Allies | -11 -10 -10 -------- Run | Yrd Mat Min Total Allies . | . . . Largest Group . | . . . Highest-Rated Group . | . . . Highest-Rated Ally . | . . . Total Orders . | . . . Ally Attacks . | . . . Total Damage . | . . . Kills . | . . . Allies Corrupted . | . . . Allies Melted . | . . . Intel | -11 -10 -10 ------- Run | Yrd Mat Min Active Infowar (turns) 522 | . 48 474 Optics 522 | . 48 474 Robot Analysis Total . | . . . Derelict Logs Recovered 3 | . . 3 Drone Launches . | . . . Drone Recoveries . | . . . Exploration | -11 -10 -10 ------------- Run | Yrd Mat Min Turns Passed 947 | 80 393 474 Spaces Moved 583 | 53 199 331 Core 12 | 12 . . Treads . | . . . Legs 571 | 41 199 331 Wheels . | . . . Hover . | . . . Flight . | . . . Fastest Speed 50 | 50 120 120 Average Speed 118 | 104 120 120 Slowest Speed 190 | 120 120 190 Overloaded Moves . | . . . Propulsion Burnouts . | . . . Robots Hopped . | . . . Potential Cave-ins . | . . . Cave-ins Triggered . | . . . Exploration Rate (%) 31 | 3 30 62 Regions Visited 2 Branch Regions 1 Pre-discovered Areas . | . . . Known Exits Taken . | . . . Unknown Exits Taken 2 | 1 1 . Scrap Searched 3 | . . 3 Spaces Dug . | . . . Terrain Destroyed 25 | . . 25 Melee . | . . . Projectile . | . . . AOE 25 | . . 25 Terrain Rammed . | . . . Walls Destroyed . | . . . Machines Disabled . | . . . Actions | -11 -10 -10 --------- Run | Yrd Mat Min Total 778 | 78 327 373 Wait 109 | 10 94 5 Move 581 | 52 198 331 Hop . | . . . Pick Up 22 | 10 8 4 Fast Attach . | . . . Attach 13 | 6 3 4 Detach 2 | . 2 . Swap 1 | . . 1 Drop 9 | . 4 5 Fire 40 | . 18 22 Melee . | . . . Ram . | . . . Kick 1 | . . 1 Crush . | . . . Escape Stasis . | . . . Rewire . | . . . Trap . | . . . Miscellaneous . | . . . Route ------- -11/Scrapyard -10/Materials -10/Mines (discovered 1 exit: [*Mat]) History --------- Turn | Location | Event 4 | -11/Scrapyard | Discovered new exit (range 15) 81 | -11/Scrapyard | Entered Materials 313 | -10/Materials | Build established: Mutant 450 | -10/Materials | Discovered new exit (range 17) 474 | -10/Materials | Entered Mines 637 | -10/Mines | Found a hidden stash of uninstalled traps 676 | -10/Mines | Learned Materials machine intel 688 | -10/Mines | Discovered new exit (range 8) 706 | -10/Mines | Learned location of 1 exit from Materials 918 | -10/Mines | Assembled infested the area 944 | -10/Mines | Core integrity fell below 50% 947 | -10/Mines | Core integrity fell below 20% 948 | -10/Mines | Destroyed by D-53 Grenadier with Mini Grenade Launcher Last Messages --------------- 00729_ Found Power Shielding. 00729_ Found Beam Cannon. 00729_ Found 58 Matter. 00739_ T-07 Excavator is excavating. 00770_ Acquired Imp. Heat Sink. 00782_ Dropped Aluminum Leg. 00787_ Acquired Aluminum Leg. 00811_ Acquired derelict log, extracted data. Data stored: Storage entrances (x1). 00918_ ALERT: Infestation in the mines, dispatching Demolisher response squad. 00937_ C-30 ARC bursts open, deploying its payload. 00937_ D-53 Grenadier unfolds itself. 00937_ Autogun destroyed. 00939_ Aluminum Leg destroyed. 00941_ Pulverizer disabled. 00942_ Aluminum Leg destroyed. 00944_ Mni. Grenade Launcher destroyed. 00947_ T-07 Excavator destroyed. Map ----- +----------------------------------------------------+ | ????????????????????????????????????????? | | ??????????#?????????????????????????????? | | ??????????# ????????????????????????????? | | ?????????? ????????????????????????????? | | ?????????? ????????????????????????????? | | ?????????? ????????????????????????????? | | ??????????# ????????????????????????????? | | ??????????# ????????????????????????????? | | ??????????# ????????????????????????????? | | ??????????# ????????????????????????????? | | ?????????## ##??????????????????????????? | | ?????????? #??????????????????????????? | | ???????????# #??????????????????????????? | | ???????????# #??????????????????????????? | | ???????????# #??????????????????????????? | | ???????????# #??????????????????????????? | | ???????????# #??????????????????????????? | | ???????????# #??????????????????????????? | | ???????????# #??????????#####???????????? | | ???????????# #????????? ##### #?????? | | ???????????# ######### #?????? | | ???????????# # # ???????? | | ???????????# ##?????????? | | ????######## % ##????????? | | ????# %d * ##???????? | | ????# ###### @ d #???????? | | ????# #????# #???????? | | ????# #????# ##???????? | | ????# ####?## # #????????? | | ???## #### "" # #????????? | | ???# #### "" ### #????????? | | ???# #####??## ##?# #????????? | | ???## #???????## ####??# #????####? | | ????## ##????????####?????# #???## ## | | ?????# #??????????????????# #???# # | | ????## #??????????????????# ##### | | ????# ##??????????????????# | | ????# #???????????????????# | | ????## ##???????????????????###### | | ?????###???????????????????????## ### | | ??????????????????????????????## ##?## | | ??????????????????????????????# #???# | | ??????????????????????????????# #???# # | | ??????????????????????????????## ##???### | | ???????????????????????????????##???????? | | ????????????????????????????????????????? | | ????????????????????????????????????????? | | ????????????????????????????????????????? | | ????????????????????????????????????????? | | | +----------------------------------------------------+ Best States ------------- Heat Dissipation 25 Energy Generation 14 Energy Capacity 250 Matter Stores 300 Matter Capacity 300 Sight Range 18 Terrain Scan Density 10 Evasion (%) 55 Item Schematics ----------------- None Robot Schematics ------------------ None Fabricated ------------ Nothing Repaired ---------- Nothing Alien Tech Used ----------------- None Achievements -------------- None Challenges ------------ None Game ------ Seed EnhancedDispersalInterrupter Manual? 0 Play Time 00:12:59 Cumulative 11.4 hours Start 2025.06.03 @ 00:11:43 End 2025.06.03 @ 18:35:52 Sessions 3 Manual Loads 0 Difficulty Rogue Special Mode None Game No. 14 Rogue 14 Adventurer 0 Explorer 0 Win Type - Total 0 Types 0/0/0/0/0/0/0/0/0/0 Lore% 13 Gallery% 14 Achievement% 17 Wizard Run 0 Options --------- Layout 1 ASCII 0 Keyboard 0 Movement Mouse Keybinds 0 Fullscreen 1 Font 24/Smallcaps Map View 50x35 Zoom Use 0% Tactical HUD 1 Map Filters NONE Filters NONE Steam 1 RUN: 90f79cd8-7c03-426d-ad9a-267772b630e7